bitfinex/quotes_ETHUSD_20220213
["timestamp","ask_amount","ask_price","bid_price","bid_amount"]
[1644764028754,0.0107185,2917.5,2917.2,0.85845826]
[1644764028952,0.00919969,2917.5,2917.2,0.85845826]
[1644764029552,1.45816831,2917.4,2917.2,0.00141826]
[1644764029952,1.45816831,2917.3,2917.2,0.00141826]
[1644764030354,1.45816831,2917.6,2917.2,0.00141826]
[1644764030555,1.45816831,2917.5,2917.2,0.00141826]
[1644764030755,1.45816831,2917.4,2917.2,0.00141826]
[1644764030956,1.45816831,2917.3,2917.2,0.00141826]
[1644764031203,0.00639286,2917.5,2917.2,0.00141826]
[1644764031403,1.45816831,2917.4,2917.2,0.00141826]
[1644764033005,1.45816831,2917.4,2917.2,0.85847826]
[1644764033205,1.45816831,2917.4,2917.2,0.00141826]
[1644764033606,1.45816831,2917.3,2917.2,0.00141826]
[1644764034506,1.45816831,2917.4,2917.2,0.00141826]
[1644764034708,1.06993994,2917.3,2917.2,0.00141826]
[1644764035149,0.86779816,2917.5,2917.2,0.00141826]
[1644764035550,0.01071816,2917.5,2917.2,0.85844826]
[1644764035750,1.45827412,2917.4,2917.2,0.85844826]
[1644764036353,0.01071838,2917.5,2917.2,1.71525826]
[1644764036754,0.01071838,2917.5,2917.3,0.8568]
[1644764036956,1.55885791,2917.8,2917.3,0.8568]
[1644764037153,1.45807217,2917.7,2917.3,0.8568]
[1644764037356,0.01071838,2917.5,2917.3,0.8568]
[1644764038154,2.41582791,2917.8,2917.3,0.8568]
[1644764038358,1.4581032,2917.7,2917.3,0.8568]
[1644764038620,0.01071843,2917.5,2917.3,0.8568]
[1644764039423,1.55885791,2917.8,2917.3,0.8568]
[1644764039621,0.01071843,2917.5,2917.3,0.8568]
[1644764040625,1.55885791,2917.8,2917.4,0.85687]
[1644764040825,0.01071843,2917.5,2917.4,2.57049]
[1644764041026,0.01071843,2917.5,2917.4,1.71362]
[1644764041824,1.55885791,2917.8,2917.4,1.71362]
[1644764042025,0.01071835,2917.6,2917.4,2.57049]
[1644764042229,0.01071835,2917.6,2917.5,0.85686]
[1644764042459,1.46876543,2917.6,2917.5,0.85686]
[1644764043057,1.45804708,2917.6,2917.5,0.85686]
[1644764043258,1.46876529,2917.7,2917.5,0.85686]
[1644764043458,1.45804708,2917.6,2917.5,0.85686]
[1644764044059,0.01071821,2917.7,2917.5,0.85686]
[1644764044259,1.45805293,2917.6,2917.5,0.85686]
[1644764044458,1.46877114,2917.7,2917.5,0.85686]
[1644764044658,1.45805293,2917.6,2917.5,0.85686]
[1644764046915,1.46877114,2917.7,2917.5,0.85594149]
[1644764047117,1.45805293,2917.6,2917.5,0.85594149]
[1644764048119,1.46877114,2917.7,2917.5,0.85594149]
[1644764048315,1.45805293,2917.6,2917.5,0.85594149]
[1644764049318,1.46877114,2917.7,2917.5,0.85594149]
[1644764049721,1.45805293,2917.6,2917.5,0.85594149]
[1644764055213,1.46877114,2917.7,2917.5,0.85594149]
[1644764055412,1.45805293,2917.6,2917.5,0.85594149]
[1644764056113,1.45805293,2917.6,2917.2,1.71536826]
[1644764057213,1.45805293,2917.6,2917.3,0.85698]
[1644764057755,0.01071843,2917.5,2917.3,0.85698]
[1644764058563,0.00370866,2917.7,2917.3,0.85698]
[1644764058771,0.01071843,2917.5,2917.3,0.85698]
[1644764059465,1.45808419,2917.4,2917.2,0.85847826]
[1644764060166,1.45808419,2917.3,2917.2,0.85847826]
[1644764060465,0.01071827,2917.5,2917.2,0.85847826]
[1644764060664,1.45811386,2917.4,2917.2,0.85847826]
[1644764061305,0.01071827,2917.5,2917.2,0.85847826]
[1644764061506,1.45810599,2917.4,2917.2,0.85847826]
[1644764062508,1.45810599,2917.3,2917.2,0.85847826]
[1644764062708,1.45810599,2917.4,2917.2,0.85847826]
[1644764063010,0.01071827,2917.5,2917.2,0.85847826]
[1644764063408,0.00370866,2917.7,2917.2,0.85847826]
[1644764063612,0.01071838,2917.5,2917.2,0.85847826]
[1644764063811,0.01071838,2917.5,2917.2,1.71529826]
[1644764064011,0.01071838,2917.5,2917.3,0.85692]
[1644764064612,0.00370866,2917.7,2917.3,0.85692]
[1644764064863,0.01071843,2917.5,2917.4,0.85686]
[1644764065063,0.01071843,2917.5,2917.4,0.85687]
[1644764065262,0.01071843,2917.5,2917.4,4.30876103]
[1644764065465,0.01071843,2917.5,2917.4,0.85687]
[1644764065863,0.00370866,2917.7,2917.4,0.85687]
[1644764066065,0.01071835,2917.6,2917.4,0.85687]
[1644764067162,0.00370866,2917.7,2917.4,1.71363]
[1644764067364,0.01071828,2917.6,2917.5,0.85681]
[1644764068165,1.55514925,2917.8,2917.5,0.85681]
[1644764068367,1.45793577,2917.7,2917.5,0.85681]
[1644764068611,1.46865398,2917.7,2917.5,0.85681]
[1644764068816,0.01071821,2917.7,2917.5,0.85681]
[1644764069413,1.45799028,2917.6,2917.5,0.85681]
[1644764071818,1.45644568,2917.6,2917.5,0.85681]
[1644764072017,1.55514925,2917.8,2917.5,0.85681]
[1644764072217,0.01071821,2917.7,2917.5,1.71361]
[1644764072463,0.01071821,2917.7,2917.6,0.85683]
[1644764073061,1.55514925,2917.8,2917.6,0.85683]
[1644764073462,1.56586731,2917.8,2917.6,0.85683]
[1644764073760,1.56586731,2917.8,2917.6,4.39924892]
[1644764073968,1.56586731,2917.8,2917.7,0.4713]
[1644764074161,0.17500866,2918.1,2917.8,3.25]
[1644764074362,0.00370866,2918.1,2917.9,1.1713]
[1644764074564,2.3332985,2918.2,2917.9,3.78881268]
[1644764074763,0.00370866,2918.7,2917.9,2.78881268]
[1644764074764,2.33700716,2918.7,2917.9,2.78881268]
[1644764075165,2.33700716,2918.7,2918.0,0.85648]
[1644764075366,2.33700716,2918.7,2918.1,0.85659]
[1644764075763,2.33700716,2918.7,2918.1,2.86974]
[1644764075963,0.00370866,2918.7,2918.1,2.86974]
[1644764076419,0.00370866,2918.7,2918.2,1.71304]
[1644764077420,0.00370866,2918.7,2918.2,5.14673418]
[1644764077623,0.00370866,2918.7,2918.2,3.01304]
[1644764077828,0.00370866,2918.7,2918.3,0.85648]
[1644764078022,0.00370866,2918.9,2918.4,0.85648]
[1644764078824,0.00370866,2918.9,2918.4,2.15648]
[1644764079024,0.00370866,2918.9,2918.5,1.71293]
[1644764079228,0.01072179,2918.8,2918.5,21.60293]
[1644764079422,0.01072179,2918.8,2918.5,22.60293]
[1644764079623,0.01072179,2918.8,2918.7,1.08396618]
[1644764079875,0.01072179,2918.8,2918.7,1.68396618]
[1644764080269,0.00370866,2918.9,2918.7,2.31277]
[1644764080467,7.48,2919.1,2918.7,2.31277]
[1644764080468,7.48370866,2919.1,2918.7,2.31277]
[1644764080671,0.01006224,2918.9,2918.7,2.31277]
[1644764081477,7.48370866,2919.1,2918.7,2.31277]
[1644764081670,7.48370866,2919.1,2918.8,0.85639]
[1644764081875,0.01006217,2918.9,2918.7,1.61456217]
[1644764082070,0.01006217,2918.9,2918.7,1.91456217]
[1644764082672,7.48370866,2919.1,2918.7,1.91456217]
[1644764082874,0.01006217,2918.9,2918.7,1.91456217]
[1644764083075,0.01006217,2918.9,2918.7,2.21456217]
[1644764083274,0.01006217,2918.9,2918.7,1.61456217]
[1644764083709,0.01006217,2918.9,2918.8,0.85639]
[1644764083910,7.48,2919.1,2918.8,0.85639]
[1644764084110,0.01006217,2918.9,2918.8,0.85639]
[1644764085110,7.48,2919.1,2918.8,0.85639]
[1644764085313,0.01010615,2919.0,2918.8,0.85639]
[1644764085513,0.01010615,2919.0,2918.8,0.85720373]
[1644764085712,3.51010615,2919.0,2918.8,0.00081373]
[1644764085915,3.68120615,2919.0,2918.8,1.373e-05]
[1644764086118,0.00370866,2918.9,2918.8,1.373e-05]
[1644764088965,0.0101032,2919.0,2918.9,0.85644]
[1644764089967,7.48,2919.1,2918.9,0.85644]
[1644764090167,7.49010305,2919.1,2918.9,0.85644]
[1644764091212,7.48,2919.1,2918.9,0.85644]
[1644764091412,7.49010298,2919.1,2918.6,2.31307]
[1644764091610,0.00370866,2919.0,2918.6,1.71307]
[1644764092015,0.00370866,2919.0,2918.6,2.01307]
[1644764092412,0.00370866,2919.0,2918.8,0.85655]
[1644764092611,0.01010328,2918.9,2918.8,0.85655]
[1644764093414,7.48,2919.1,2918.8,0.85655]
[1644764093816,7.39010339,2919.1,2918.8,0.85655]
[1644764095073,3.0928636,2919.0,2918.8,0.85655]
[1644764095275,3.68359649,2919.3,2918.8,0.85655]
[1644764095474,0.00081727,2918.9,2918.8,0.85655]
[1644764100413,0.01170166,2919.1,2918.8,0.85655]
[1644764100614,0.00098072,2919.1,2918.9,0.85637]
[1644764100816,0.00098072,2919.1,2919.0,0.85635]
[1644764101017,0.00098072,2919.1,2919.0,20.74635]
[1644764101018,0.01170188,2919.1,2919.0,20.74635]
[1644764101215,0.01170188,2919.1,2919.0,22.34635]
[1644764101816,0.01170188,2919.1,2919.0,23.22052849]
[1644764102016,0.00370866,2919.4,2919.3,20.7461]
[1644764102216,7.48,2919.5,2919.3,20.7461]
[1644764102465,7.48,2919.5,2919.3,20.9172]
[1644764103364,7.48,2919.5,2919.3,21.77334]
[1644764103564,7.48,2920.0,2919.4,1.71244]
[1644764103765,0.00370866,2919.9,2919.5,1.16810608]
[1644764104065,7.48,2920.0,2919.5,1.16810608]
[1644764104263,0.00370866,2919.9,2919.5,1.16810608]
[1644764104463,7.48,2920.0,2919.5,1.16810608]
[1644764104664,0.00370866,2919.9,2919.5,1.16810608]
[1644764104866,7.48,2920.0,2919.6,0.8562]
[1644764105065,0.00370866,2919.9,2919.6,1.71239]
[1644764105275,7.48,2920.0,2919.6,1.71239]
[1644764105465,7.48,2920.0,2919.6,0.85619]
[1644764105866,0.01069315,2919.9,2919.6,0.85619]
[1644764106510,0.01069315,2919.9,2919.7,1.71235]
[1644764106711,7.48,2920.0,2919.7,1.71235]
[1644764106913,0.01069315,2919.9,2919.7,1.71235]
[1644764107919,7.48,2920.0,2919.7,1.71235]
[1644764108112,0.01069307,2919.9,2919.7,1.71235]
[1644764108915,0.01069307,2919.9,2919.7,2.56852]
[1644764109114,7.48,2920.0,2919.7,1.71235]
[1644764109316,7.48,2920.0,2919.7,0.15816595]
[1644764109317,0.01069307,2919.9,2919.7,0.15816595]
[1644764109986,0.01069307,2919.9,2919.8,0.85617]
[1644764110388,7.48,2920.0,2919.8,0.85617]
[1644764110591,7.490693,2920.0,2919.8,0.85617]
[1644764111588,7.48,2920.0,2919.8,0.85617]
[1644764111788,7.49069292,2920.0,2919.8,1.80627237]
[1644764112891,7.48635442,2920.0,2919.8,1.80627237]
[1644764113908,7.48,2920.0,2919.8,1.80627237]
[1644764114107,7.48635442,2920.0,2919.8,1.80627237]
[1644764115108,7.48,2920.0,2919.8,1.80627237]
[1644764115308,7.48635442,2920.0,2919.8,1.80627237]
[1644764115510,7.48635442,2920.0,2919.8,0.85617]
[1644764116313,7.48,2920.0,2919.8,0.85617]
[1644764116712,7.49069817,2920.0,2919.8,0.85617]
[1644764117560,7.48,2920.0,2919.8,0.85617]
[1644764117764,7.49069817,2920.0,2919.8,0.85617]
[1644764118661,7.48,2920.0,2919.8,0.85617]
[1644764119161,7.49069817,2920.0,2919.8,0.85617]
[1644764119561,7.49069817,2920.0,2919.8,24.22977107]
[1644764119763,7.49069817,2920.0,2919.9,3.43892656]
[1644764119764,0.01069817,2920.0,2919.9,3.43892656]
[1644764119966,0.17480866,2920.5,2919.9,5.46592656]
[1644764120168,0.17480866,2920.5,2920.0,0.85589]
[1644764120367,0.21759493,2920.5,2920.1,3.8148677]
[1644764120768,0.21388627,2920.5,2920.1,3.8148677]
[1644764120964,0.21388627,2920.5,2920.2,1.10264017]
[1644764121216,0.21388627,2920.5,2920.3,4.96632534]
[1644764121217,0.1711,2920.5,2920.3,4.96632534]
[1644764121422,0.00370866,2920.7,2920.4,3.73728308]
[1644764121717,6.13667254,2920.8,2920.4,23.62728308]
[1644764121918,0.04278389,2920.9,2920.4,23.92728308]
[1644764122119,0.04278389,2920.9,2920.5,0.85566]
[1644764122317,0.00370866,2921.0,2920.7,21.75980951]
[1644764122517,0.00370866,2921.0,2920.8,1.71137]
[1644764122719,0.00370866,2921.0,2920.8,5.15415957]
[1644764122920,7.48,2921.1,2920.8,5.1854266]
[1644764123118,7.48,2921.1,2920.8,6.0411166]
[1644764123522,7.48,2921.1,2920.8,25.9311166]
[1644764124121,7.48,2921.1,2920.9,0.85569]
[1644764124321,7.48,2921.1,2921.0,3.4892418]
[1644764126062,4.77906721,2921.1,2921.0,3.4892418]
[1644764126266,0.01070033,2921.2,2921.1,24.94]
[1644764126468,0.01070033,2921.2,2921.1,25.79552]
[1644764126666,0.04279491,2921.6,2921.3,19.89]
[1644764126864,0.04279491,2921.6,2921.4,20.89]
[1644764127065,0.00370866,2921.7,2921.4,21.19]
[1644764127264,7.48,2921.8,2921.4,21.19]
[1644764127467,0.00370866,2921.9,2921.6,19.89]
[1644764127671,2.33020019,2922.0,2921.7,20.74539]
[1644764127970,0.00370866,2921.9,2921.8,1.0]
[1644764128167,1.4598475,2922.6,2921.8,1.3]
[1644764128371,1.4598475,2922.6,2922.0,0.85538]
[1644764128625,1.4598475,2922.6,2922.1,0.3]
[1644764128813,7.48,2922.7,2922.1,0.3]
[1644764129012,0.00373073,2922.5,2922.0,0.3]
[1644764129214,0.00373073,2922.6,2921.9,4.3449439]
[1644764129415,0.00373073,2922.6,2922.1,0.85539]
[1644764129614,0.00373073,2922.6,2922.2,0.85538]
[1644764129815,0.00634177,2922.4,2922.2,0.85538]
[1644764130718,0.00373073,2922.6,2922.2,0.85538]
[1644764130922,0.00634177,2922.4,2922.3,1.71055]
[1644764131119,0.00634177,2922.4,2922.3,6.17842638]
[1644764131324,0.00634177,2922.4,2922.3,6.77842638]
[1644764131721,0.00634177,2922.4,2922.3,3.31055]
[1644764131921,0.00373073,2922.6,2922.3,2.31055]
[1644764132121,7.48,2922.7,2922.4,2.64448196]
[1644764132365,0.01070038,2922.5,2922.4,2.64448196]
[1644764132765,0.01070038,2922.5,2922.4,2.08924196]
[1644764133163,0.00373073,2922.6,2922.4,2.08924196]
[1644764133470,0.00636079,2922.6,2922.4,2.08924196]
[1644764134367,0.00373073,2922.9,2922.4,2.94449196]
[1644764134569,0.00636079,2922.6,2922.5,0.85529]
[1644764134769,0.00636079,2922.6,2922.1,1.7109]
[1644764134971,0.00636079,2922.6,2921.6,2.43712562]
[1644764134972,0.64379149,2922.2,2921.6,2.43712562]
[1644764135169,0.00373073,2922.1,2921.6,0.6]
[1644764135369,0.00373073,2922.4,2921.6,0.3]
[1644764135572,0.00084015,2922.6,2921.7,1.71077]
[1644764135770,0.00084015,2922.6,2921.8,1.71106]
[1644764135771,0.00636079,2922.0,2921.8,1.71106]
[1644764135973,0.00636079,2922.0,2921.8,1.88216]
[1644764136619,0.00636079,2922.0,2921.9,20.19]
[1644764136818,0.00084015,2922.6,2922.0,25.00034]
[1644764137020,0.04288185,2922.5,2922.1,0.85518]
[1644764137218,0.04288185,2922.5,2922.1,2.15518]
[1644764138018,0.00084015,2922.6,2922.1,2.15518]
[1644764138019,0.00084015,2922.6,2922.2,0.85517]
[1644764138217,0.00634026,2922.4,2922.3,3.72075]
[1644764138416,0.00634026,2922.4,2922.3,4.72075]
[1644764138621,0.00634026,2922.4,2922.3,5.02075]
[1644764139221,0.00084015,2922.6,2922.3,5.02075]
[1644764139419,0.00634026,2922.5,2922.4,2.71035]
[1644764140464,0.00084015,2922.6,2922.4,3.56551]
[1644764140667,0.0107265,2922.6,2922.4,2.71035]
[1644764140864,0.0107265,2922.6,2922.5,1.71038]
[1644764141064,0.0107265,2922.6,2922.5,2.01038]
[1644764141665,0.00373073,2923.1,2922.5,6.30947238]
[1644764141868,0.00373073,2923.1,2922.7,0.85522]
[1644764141869,0.04662968,2923.1,2922.7,0.85522]
[1644764142769,0.00373073,2923.1,2922.7,0.85522]
[1644764142966,0.01072582,2923.0,2922.7,1.71032]
[1644764143168,0.01072582,2923.0,2922.8,1.71033]
[1644764143617,0.01072582,2923.0,2922.8,3.42058]
[1644764143824,0.01072582,2923.0,2922.8,3.72058]
[1644764144013,0.00373073,2923.2,2922.8,3.72058]
[1644764144212,0.01072582,2923.0,2922.8,3.72058]
[1644764144413,0.01072582,2923.0,2922.9,0.85514]
[1644764144612,0.01072582,2923.0,2922.9,4.2946128]
[1644764144813,0.01072582,2923.0,2922.9,0.85514]
[1644764145212,0.027076,2923.1,2922.9,0.85514]
[1644764145414,0.03780175,2923.1,2922.9,4.28166671]
[1644764145614,0.00085145,2923.0,2922.9,0.85514]
[1644764148669,0.00085145,2923.0,2922.9,1.15514]
[1644764149269,0.00085145,2923.0,2922.8,3.02292935]
[1644764149470,0.00373073,2923.3,2922.9,24.14517]
[1644764149769,7.48,2923.4,2922.9,21.67320592]
[1644764149973,0.00373684,2923.3,2923.1,19.89]
[1644764150172,7.48,2923.4,2923.1,19.89]
[1644764150376,0.00373684,2923.5,2923.0,2.56507]
[1644764150574,0.00373684,2923.5,2923.1,0.85497]
[1644764150772,0.00373684,2923.6,2923.1,0.85497]
[1644764151214,0.00373684,2923.8,2923.2,0.85496]
[1644764151616,0.00373684,2923.8,2923.2,5.14371544]
[1644764151814,0.00373684,2923.8,2923.2,4.28875544]
[1644764152215,0.00373684,2923.8,2923.4,0.85506]
[1644764152614,0.01075031,2923.6,2923.4,0.85506]
[1644764153612,0.00373684,2923.8,2923.4,0.85506]
[1644764153814,0.01075031,2923.6,2923.5,0.85507]
[1644764154713,0.51705009,2924.0,2923.4,0.85506]
[1644764154969,1.47377411,2923.4,2923.3,1.71011]
[1644764157376,0.51331325,2924.0,2923.3,1.71011]
[1644764157377,1.28324076,2924.2,2923.6,4.75]
[1644764157575,1.28324076,2924.2,2923.5,4.75]
[1644764157576,1.2404,2925.0,2924.0,0.85495]
[1644764157783,1.27402436,2924.7,2924.1,3.5]
[1644764157979,0.171,2925.2,2924.1,3.5]
[1644764157980,1.69869915,2925.0,2924.2,4.75]
[1644764158186,0.01156575,2925.2,2924.4,9.75]
[1644764158382,5.36516045,2926.5,2924.7,19.90291191]
[1644764158383,0.85071742,2926.2,2924.7,19.90291191]
[1644764158631,4.13144738,2926.6,2925.1,9.75]
[1644764158632,0.85071742,2926.6,2925.1,9.75]
[1644764158817,1.02719797,2926.8,2925.1,9.75]
[1644764158818,0.85071742,2926.8,2925.6,5.0]
[1644764159023,0.80071742,2927.2,2925.8,2.56188]
[1644764159215,0.80071742,2927.4,2926.1,1.5]
[1644764159519,7.48,2927.8,2926.3,19.89]
[1644764159719,5.48070863,2927.9,2926.7,0.85381]
[1644764159720,2.32673076,2927.9,2926.7,0.85381]
[1644764159915,2.32673076,2927.9,2926.7,21.67361134]
[1644764160116,2.32673076,2927.9,2926.8,27.2755]
[1644764160318,0.0165948,2928.2,2927.0,19.89]
[1644764160522,0.0165948,2928.2,2927.1,0.1706]
[1644764160719,0.0165948,2928.2,2927.1,3.5]
[1644764160920,0.0165948,2928.2,2927.1,1.70744]
[1644764161118,0.0165948,2928.2,2927.1,0.85363]
[1644764161119,0.01077683,2927.7,2927.1,0.85363]
[1644764161319,0.01077683,2927.7,2926.8,3.4147]
[1644764161519,0.01077683,2927.7,2926.9,3.5]
[1644764161719,0.01077683,2927.7,2926.6,2.56181]
[1644764161720,0.01077683,2927.7,2926.7,3.9708]
[1644764161920,0.01077683,2927.7,2927.2,1.70789]
[1644764162124,0.0165948,2928.2,2927.3,20.0606]
[1644764162363,0.04310329,2927.8,2927.4,1.0]
[1644764162568,0.04310329,2927.8,2927.3,0.1706]
[1644764162763,0.04310329,2927.8,2927.4,1.70736]
[1644764162966,0.0165948,2928.2,2927.4,1.70736]
[1644764162967,0.00969809,2928.2,2927.4,1.70736]
[1644764163165,0.00969809,2928.2,2927.6,19.89]
[1644764163365,0.00969809,2928.2,2927.7,0.1706]
[1644764163565,0.00969809,2928.2,2927.6,0.1706]
[1644764164366,0.09789806,2928.7,2927.6,0.1706]
[1644764164565,0.09789806,2928.7,2927.7,1.70722]
[1644764164775,0.13819996,2929.2,2927.8,0.3]
[1644764164967,0.13819996,2929.2,2927.8,0.4706]
[1644764165166,0.13819996,2929.2,2927.8,0.3]
[1644764165367,0.13819996,2929.2,2927.3,0.1706]
[1644764165368,5.0,2929.1,2927.4,0.0403019]
[1644764165567,5.0,2928.8,2927.4,0.0403019]
[1644764165765,0.00376538,2929.0,2927.4,0.0403019]
[1644764165766,0.93625392,2928.4,2927.4,0.0403019]
[1644764166224,0.00376538,2928.3,2927.4,0.0403019]
[1644764166419,0.8900193,2928.4,2927.4,0.0403019]
[1644764166620,0.8900193,2928.4,2927.6,0.85379]
[1644764166821,0.8900193,2928.4,2927.4,0.0403019]
[1644764167023,0.00627693,2928.0,2927.4,0.0403019]
[1644764167824,0.00627693,2928.0,2927.5,0.85384]
[1644764168122,0.1707,2929.0,2927.5,1.02444]
[1644764168325,0.01078409,2927.9,2927.6,0.01078553]
[1644764169223,1.188834,2928.5,2927.5,1.02444]
[1644764169424,0.01078419,2927.9,2927.6,0.01078546]
[1644764170265,0.01078419,2927.9,2927.6,1.71819546]
[1644764170464,0.10996249,2929.1,2927.7,3.85903873]
[1644764170465,0.09789806,2929.1,2927.7,3.85903873]
[1644764170663,0.01078419,2927.9,2927.7,4.03113002]
[1644764170867,0.01078419,2927.9,2927.7,0.85384]
[1644764171066,0.01078419,2927.9,2927.6,0.01078546]
[1644764171666,0.84718047,2928.5,2927.4,1.70767]
[1644764171869,0.01078419,2927.9,2927.6,0.01078546]
[1644764172074,0.01078419,2927.9,2927.7,0.1706]
[1644764172270,0.04312599,2928.7,2927.7,4.0655115]
[1644764172470,0.04312599,2928.7,2927.7,4.23760279]
[1644764172774,0.04312599,2928.7,2927.9,2.00696]
[1644764172969,0.10166602,2929.1,2928.0,0.1706]
[1644764173170,0.00376796,2929.1,2928.3,0.85364]
[1644764173372,0.1706,2929.7,2928.4,3.53693931]
[1644764173616,1.45299252,2929.6,2928.5,0.1706]
[1644764173814,3.9967,2929.8,2928.6,1.70681]
[1644764174010,3.9967,2929.8,2928.2,1.1706]
[1644764174011,1.45301383,2929.7,2928.2,1.1706]
[1644764174217,0.87612086,2929.5,2928.5,0.1706]
[1644764174418,5.0,2929.8,2927.9,1.25]
[1644764174419,5.0,2929.8,2928.8,0.85351]
[1644764174617,5.0,2929.8,2928.0,3.84683239]
[1644764174618,2.1045786,2928.7,2928.0,3.84683239]
[1644764174816,2.1045786,2928.7,2928.3,0.1706]
[1644764175020,2.1045786,2928.7,2928.2,3.45265531]
[1644764175220,2.1045786,2928.7,2928.3,0.1706]
[1644764175420,2.1045786,2928.7,2928.3,1.87774]
[1644764177019,2.1045786,2928.7,2928.3,1.70714]
[1644764177220,2.1045786,2928.7,2928.4,3.45854964]
[1644764177675,2.1045786,2928.7,2928.4,6.01871964]
[1644764177874,2.11536366,2928.7,2928.4,6.01871964]
[1644764178078,2.11536366,2928.7,2928.5,0.1706]
[1644764178474,2.11536366,2928.7,2928.5,0.85353]
[1644764178877,0.1706,2929.7,2928.6,7.16328]
[1644764179074,0.6,2929.8,2928.6,3.41328]
[1644764179075,0.01078498,2928.7,2928.6,3.41328]
[1644764180077,0.3,2929.8,2928.9,1.70674]
[1644764180278,8.08,2930.0,2928.9,1.70674]
[1644764180475,13.08,2930.0,2928.9,1.70674]
[1644764180681,8.08,2930.0,2928.9,1.70674]
[1644764180877,13.08,2930.0,2928.9,2.5101]
[1644764181111,13.08,2930.0,2929.0,0.85337]
[1644764181314,13.03,2930.0,2929.0,0.85337]
[1644764181515,8.03,2930.0,2929.0,0.85337]
[1644764181815,13.03,2930.0,2929.0,0.85337]
[1644764182019,7.48,2930.0,2929.0,0.85337]
[1644764182216,7.48,2930.0,2929.0,24.71397]
[1644764182416,7.43,2930.0,2929.3,20.74308]
[1644764182618,0.00376909,2929.9,2929.5,19.89]
[1644764182817,0.04314909,2930.1,2929.6,4.75]
[1644764183021,0.04314909,2930.1,2929.7,19.89]
[1644764183221,0.04314909,2930.1,2929.6,2.32353]
[1644764183417,0.04314909,2930.1,2929.8,1.706]
[1644764183619,0.00376909,2930.5,2929.9,3.5]
[1644764183921,8.88874972,2932.2,2929.9,3.6706]
[1644764183922,0.00376909,2930.6,2929.9,3.6706]
[1644764184120,0.00376909,2931.2,2930.0,1.1312]
[1644764184320,7.48,2931.2,2930.3,19.89]
[1644764184522,7.48,2931.2,2930.2,2.55803]
[1644764184523,0.00376909,2931.1,2930.5,19.89]
[1644764184718,0.00376909,2931.1,2930.2,2.55803]
[1644764184719,0.00376909,2931.1,2930.8,19.89]
[1644764184986,7.48,2931.2,2930.8,19.89]
[1644764184987,0.00376909,2931.2,2930.8,19.89]
[1644764185175,2.32698562,2932.1,2930.8,20.74273]
[1644764185376,2.32698562,2932.1,2931.2,19.89]
[1644764185377,2.27698562,2932.1,2931.2,19.89]
[1644764185577,2.27698562,2932.1,2931.2,1.70522]
[1644764185782,2.27698562,2932.1,2931.3,0.85261]
[1644764185974,2.27698562,2932.1,2931.2,0.53265079]
[1644764186179,0.00376909,2932.1,2931.3,1.02308]
[1644764186380,0.03211598,2932.4,2931.4,3.5]
[1644764186581,0.03211598,2932.4,2931.6,19.89]
[1644764186784,0.04092649,2932.3,2931.7,0.1705]
[1644764186982,0.04092649,2932.3,2931.6,0.1705]
[1644764187181,0.04035807,2932.2,2931.6,0.8524]
[1644764187385,0.03211598,2932.4,2931.7,0.1705]
[1644764187592,0.00376909,2933.2,2932.3,0.01257359]
[1644764187786,0.00376909,2933.3,2933.0,0.01255009]
[1644764187988,0.05,2933.6,2932.6,3.40704]
[1644764188188,0.05,2933.6,2932.6,1.7043]
[1644764188390,0.051,2933.6,2932.6,1.7043]
[1644764188613,0.05376909,2933.6,2932.7,0.1703]
[1644764188821,0.05,2933.6,2932.9,0.85176]
[1644764189029,0.05,2933.6,2933.0,0.1703]
[1644764189214,0.05,2933.6,2933.0,1.87419]
[1644764189415,0.05,2933.6,2933.0,1.32712025]
[1644764189617,0.015769,2934.2,2933.1,5.214]
[1644764189817,0.015769,2934.2,2933.5,20.74185]
[1644764190016,0.015769,2934.2,2933.5,1.85396043]
[1644764190326,0.00376909,2935.0,2933.9,1.70323]
[1644764190720,0.00376909,2935.2,2934.1,0.85173]
[1644764190919,1.05844032,2934.7,2934.4,0.85146]
[1644764191116,0.00376909,2935.4,2933.5,0.25]
[1644764191117,0.001,2935.3,2933.5,3.75]
[1644764191316,0.00376909,2934.6,2933.8,1.70362]
[1644764191520,0.00376909,2935.3,2933.9,0.1703]
[1644764191816,0.1703,2935.4,2934.4,0.85151]
[1644764192015,0.00376909,2935.3,2934.4,0.85151]
[1644764192218,1.04479645,2935.4,2934.4,0.85151]
[1644764192480,0.01078343,2935.0,2933.9,1.8345]
[1644764192681,0.01078343,2935.0,2933.9,1.7033]
[1644764192879,0.01078343,2935.0,2933.7,0.1703]
[1644764193080,0.1703,2934.9,2934.0,0.85184]
[1644764193282,0.00378282,2934.8,2934.0,0.85184]
[1644764193483,0.95664925,2934.9,2934.0,0.85184]
[1644764193681,0.01078414,2934.6,2934.1,0.1304]
[1644764193880,0.01078414,2934.6,2934.0,0.85184]
[1644764194082,1.14195535,2934.4,2933.9,0.1703]
[1644764194281,1.14195535,2934.4,2933.5,1.102]
[1644764194482,0.00378282,2934.3,2933.5,0.852]
[1644764194683,0.00378282,2934.8,2933.5,1.152]
[1644764194984,0.01078493,2934.1,2933.6,3.50423797]
[1644764195182,0.01078493,2934.1,2933.5,0.1312]
[1644764195386,0.01078493,2934.1,2933.8,0.8519]
[1644764195582,0.01078493,2934.1,2933.3,3.57685]
[1644764195783,0.00378282,2934.2,2933.3,0.1703]
[1644764195987,1.10781912,2933.8,2933.3,0.1703]
[1644764196240,1.10781912,2933.8,2932.9,1.70419]
[1644764196441,0.01078493,2934.1,2932.9,1.70419]
[1644764196442,0.00378282,2933.7,2933.1,0.85208]
[1644764196642,0.1703,2934.0,2933.1,0.85208]
[1644764196841,0.00378282,2933.9,2933.1,0.85208]
[1644764197443,0.00378282,2933.9,2932.7,0.132]
[1644764197444,0.01078556,2933.7,2932.7,0.132]
[1644764197641,0.01078556,2933.7,2932.6,1.70434]
[1644764197642,0.01456838,2933.7,2932.6,1.70434]
[1644764197843,0.18486838,2933.7,2932.6,1.70434]
[1644764198047,0.18486838,2933.7,2932.4,0.73112255]
[1644764198048,0.83815918,2933.3,2932.4,0.73112255]
[1644764198252,0.17408282,2933.2,2932.4,0.6741]
[1644764198648,0.17408282,2933.2,2932.4,0.68488966]
[1644764199046,0.17408282,2933.2,2932.6,0.85227]